bitfinex-derivatives/quotes_ETHF0:USTF0_20250417
["timestamp","ask_amount","ask_price","bid_price","bid_amount"]
[1744850574738,1.26216,1584.7,1584.6,1.7172]
[1744850575045,3.2078,1584.8,1584.6,2.97941]
[1744850575349,4.46994,1584.8,1584.6,2.97941]
[1744850575651,4.46994,1584.8,1584.7,2.96486]
[1744850575850,4.46994,1584.8,1584.7,1.7027]
[1744850577352,1.26214,1584.8,1584.7,1.7027]
[1744850577755,4.46994,1584.8,1584.7,1.7027]
[1744850580556,1.26224,1584.6,1584.5,6.71115239]
[1744850580748,1.26224,1584.6,1584.5,8.32775239]
[1744850580948,4.47004,1584.6,1584.5,8.32775239]
[1744850581249,1.26224,1584.6,1584.5,2.47175239]
[1744850581554,5.29304,1584.6,1584.5,2.47175239]
[1744850581758,2.08524,1584.6,1584.5,2.47175239]
[1744850582756,9.63804,1584.6,1584.5,1.62605239]
[1744850582952,9.63804,1584.6,1584.5,0.00945239]
[1744850583353,1.26248,1584.3,1584.2,0.7963]
[1744850583553,1.26248,1584.3,1584.2,2.393]
[1744850583755,5.60748,1584.3,1584.2,2.393]
[1744850584058,1.26264,1584.1,1584.0,0.8771]
[1744850584254,1.26264,1584.1,1584.0,1.7607]
[1744850585654,1.26272,1584.0,1583.9,0.00945239]
[1744850585850,10.56892,1584.0,1583.9,0.00945239]
[1744850586053,15.56892,1584.0,1583.9,0.00945239]
[1744850586253,1.26314,1583.5,1583.3,13.7428939]
[1744850586558,1.26309,1583.6,1583.4,3.0001]
[1744850586755,4.346,1583.7,1583.5,1.7369]
[1744850587153,5.609,1583.7,1583.5,2.99999]
[1744850587352,5.609,1583.7,1583.6,1.7369]
[1744850589456,7.2259,1583.7,1583.6,1.7369]
[1744850589659,5.609,1583.7,1583.6,1.7369]
[1744850589858,4.346,1583.7,1583.6,2.99994]
[1744850590359,5.60886,1583.9,1583.7,1.26291]
[1744850590554,4.346,1583.9,1583.7,4.56191]
[1744850590751,1.26288,1583.8,1583.7,3.299]
[1744850590951,1.26288,1583.8,1583.7,1.686]
[1744850591161,5.60886,1583.9,1583.7,2.94896]
[1744850591767,1.26288,1583.8,1583.7,2.94896]
[1744850591961,1.26288,1583.8,1583.7,1.686]
[1744850593361,1.26288,1583.8,1583.7,2.94896]
[1744850593565,5.60886,1583.9,1583.7,2.94896]
[1744850594055,1.26288,1583.8,1583.7,2.94896]
[1744850594254,1.26288,1583.8,1583.7,1.686]
[1744850594963,5.60887,1583.9,1583.7,2.94896]
[1744850595766,0.00945239,1584.1,1584.0,1.26272]
[1744850596262,0.00945239,1584.1,1584.0,42.06272]
[1744850597865,0.00945239,1584.1,1584.0,47.06272]
[1744850598366,0.00945239,1584.1,1584.0,47.86362]
[1744850600469,0.00945239,1584.1,1584.0,42.86362]
[1744850600765,3.2078,1584.4,1584.3,1.26248]
[1744850601461,4.4702,1584.4,1584.3,1.26248]
[1744850601663,1.26248,1584.3,1584.2,1.26255]
[1744850601859,1.26256,1584.2,1584.1,0.7983]
[1744850602164,1.26262,1584.2,1584.1,1.26264]
[1744850602554,2.99933,1584.3,1584.1,1.26264]
[1744850602758,1.7368,1584.3,1584.1,1.26264]
[1744850602971,2.99935,1584.3,1584.1,1.26264]
[1744850603569,1.26256,1584.2,1584.1,1.26264]
[1744850604469,7.5538,1584.4,1584.2,1.26256]
[1744850604669,7.5538,1584.4,1584.0,6.6569]
[1744850605258,3.2078,1584.4,1584.3,1.26248]
[1744850606470,4.4702,1584.4,1584.3,1.26248]
[1744850607170,3.2078,1584.4,1584.3,1.26248]
[1744850608875,0.00945239,1584.5,1584.4,1.2624]
[1744850609072,0.00945239,1584.5,1584.4,2.9234]
[1744850610380,4.346,1584.8,1584.7,1.26216]
[1744850610567,4.029,1584.9,1584.8,1.26208]
[1744850610972,0.8212,1584.9,1584.8,1.26208]
[1744850611177,7.5538,1585.3,1585.1,1.26181]
[1744850611377,11.26635,1585.3,1585.1,1.26181]
[1744850611577,10.0046,1585.3,1585.2,2.90357]
[1744850611874,11.26629,1585.3,1585.2,1.6418]
[1744850612263,10.0046,1585.3,1585.0,1.26187]
[1744850612478,2.86251,1585.2,1585.1,1.26185]
[1744850613477,2.86251,1585.2,1585.1,2.90365]
[1744850613975,1.6007,1585.2,1585.1,2.90365]
[1744850614475,4.46949,1585.3,1585.2,1.26177]
[1744850614774,4.46949,1585.3,1585.2,1.7228]
[1744850615279,1.26185,1585.1,1585.0,2.07931]
[1744850616780,2.9651,1585.2,1585.0,2.07931]
[1744850617276,4.4695,1585.3,1585.1,3.01355]
[1744850617475,6.1928,1585.3,1585.2,1.7517]
[1744850618579,6.1928,1585.3,1585.2,3.01347]
[1744850618779,6.1928,1585.3,1585.2,1.7517]
[1744850620577,1.26185,1585.1,1585.0,2.07929]
[1744850620779,3.82262,1585.2,1585.0,1.26189]
[1744850621176,2.95335,1585.1,1585.0,2.91559]
[1744850621477,1.6915,1585.1,1585.0,2.91559]
[1744850621786,2.95335,1585.1,1585.0,2.91559]
[1744850621981,2.95335,1585.1,1585.0,1.6537]
[1744850622280,3.78085,1585.1,1585.0,2.91563]
[1744850622781,2.519,1585.1,1585.0,2.91563]
[1744850623075,3.78085,1585.1,1585.0,2.91563]
[1744850623278,3.78085,1585.1,1585.0,1.6537]
[1744850623677,6.98865,1585.1,1584.9,1.26195]
[1744850623880,1.5964,1585.0,1584.9,1.26195]
[1744850624472,1.5964,1585.0,1584.9,3.02335]
[1744850624978,2.85833,1585.0,1584.9,3.02335]
[1744850625481,1.26201,1584.9,1584.8,2.07003]
[1744850625675,1.26208,1584.8,1584.7,2.0966]
[1744850626182,3.71917,1584.9,1584.7,2.0966]
[1744850626383,2.94428,1584.8,1584.7,2.0966]
[1744850626584,1.6822,1584.8,1584.7,2.0966]
[1744850626882,2.94428,1584.8,1584.7,2.0966]
[1744850627078,13.04523,1584.8,1584.3,0.00945239]
[1744850627275,1.2624,1584.4,1584.3,0.00945239]
[1744850627686,3.7649,1584.4,1584.3,0.00945239]
[1744850628282,1.26272,1584.0,1583.9,1.7635]
[1744850628677,1.26272,1584.0,1583.9,42.5635]
[1744850629080,2.94492,1584.0,1583.9,1.7635]
[1744850630178,1.2628,1583.9,1583.8,12.45779505]
[1744850630375,3.0277,1583.9,1583.8,0.00945239]
[1744850630578,1.26312,1583.5,1583.4,40.8]
[1744850630776,1.2632,1583.4,1583.3,1.7104]
[1744850631376,1.26336,1583.2,1583.1,42.5115]
[1744850632483,1.26341,1583.2,1583.0,0.00945239]
[1744850632683,1.26342,1583.2,1583.0,0.00945239]
[1744850633183,1.26344,1583.1,1583.0,0.00945239]
[1744850635080,4.47124,1583.1,1583.0,0.00945239]
[1744850635283,9.47124,1583.1,1583.0,2.39e-06]
[1744850635984,11.06314,1583.1,1583.0,2.39e-06]
[1744850637589,6.06314,1583.1,1583.0,2.39e-06]
[1744850639591,11.06314,1583.1,1583.0,2.39e-06]
[1744850640187,6.06314,1583.1,1583.0,2.39e-06]
[1744850640789,11.06314,1583.1,1583.0,2.39e-06]
[1744850641290,17.05314,1583.1,1583.0,2.39e-06]
[1744850641696,17.16928746,1583.1,1583.0,2.39e-06]
[1744850641896,17.66745107,1583.1,1583.0,2.39e-06]
[1744850642792,17.66745107,1583.1,1582.5,0.10227239]
[1744850642997,17.66745107,1583.1,1582.1,5.856]
[1744850642998,1.26424,1582.1,1582.0,5.856]
[1744850643198,1.2644,1581.9,1581.8,1.6519]
[1744850643394,4.4722,1581.9,1581.8,42.4519]
[1744850643593,4.4722,1581.9,1581.8,47.4519]
[1744850643794,1.2644,1581.9,1581.8,0.8013]
[1744850644197,1.27385256,1582.0,1581.8,5.8013]
[1744850644410,1.2644,1581.9,1581.8,0.8013]
[1744850645007,1.2644,1581.9,1581.8,5.8013]
[1744850645209,6.36885,1581.9,1581.5,0.8506]
[1744850645507,1.2648,1581.4,1581.3,5.856]
[1744850645708,1.26477,1581.5,1581.3,5.856]
[1744850645898,1.2648,1581.4,1581.3,5.856]
[1744850646102,4.47257,1581.5,1581.3,5.856]
[1744850646309,3.2078,1581.5,1581.2,1.7174]
[1744850646510,1.6325,1581.6,1581.2,1.7174]
[1744850646710,1.6325,1581.6,1581.3,40.8]
[1744850646905,4.8403,1581.6,1581.2,1.7174]
[1744850647099,4.4726,1581.4,1581.3,1.5932]
[1744850647302,1.2648,1581.4,1581.3,1.5932]
[1744850647510,4.4726,1581.4,1581.3,1.5932]
[1744850647912,8.8216,1581.4,1581.3,1.5932]
[1744850650411,10.71884,1581.4,1580.9,7.12117]
[1744850650613,1.26508,1581.1,1580.9,8.82478]
[1744850650808,1.26512,1581.0,1580.9,7.5596]
[1744850651012,1.26512,1581.0,1580.9,1.7036]
[1744850653011,2.91832,1581.0,1580.9,1.7036]
[1744850653412,1.26512,1581.0,1580.9,1.7036]
[1744850655014,7.5588,1581.1,1580.9,6.7036]
[1744850655209,1.26512,1581.0,1580.9,2.96873]
[1744850655702,1.26512,1581.0,1580.9,7.96873]
[1744850655906,1.26512,1581.0,1580.9,2.96873]
[1744850656108,1.26508,1581.1,1580.9,2.96873]
[1744850656307,1.26512,1581.0,1580.9,2.96873]
[1744850656507,0.00948256,1581.2,1580.9,2.96873]
[1744850656709,1.26512,1581.0,1580.9,2.96873]
[1744850657316,1.2651,1581.1,1580.9,2.96873]
[1744850657613,1.27445256,1581.2,1581.1,1.26504]
[1744850657813,1.27445256,1581.2,1581.0,1.26506]
[1744850658012,1.27445256,1581.2,1581.1,2.96974]
[1744850658414,1.27445256,1581.2,1581.1,1.7047]
[1744850659317,0.00948256,1581.2,1581.1,2.96974]
[1744850659914,0.00948256,1581.2,1581.1,3.77024]
[1744850662020,1.27444256,1581.2,1581.1,2.5052]
[1744850662323,1.26166663,1581.2,1581.1,1.7047]
[1744850662516,5.61366663,1581.2,1581.1,1.7047]
[1744850662717,1.2652,1580.9,1580.8,0.8258]
[1744850663019,1.2652,1580.9,1580.8,3.69913]
[1744850664119,1.27465256,1581.0,1580.9,1.2652]
[1744850664311,1.27465256,1581.0,1580.9,2.8733]
[1744850664516,0.00948256,1581.0,1580.9,2.8733]
[1744850664718,3.2078,1581.4,1581.3,1.26488]
[1744850664913,1.26448,1581.8,1581.7,1.26454]
[1744850665215,8.24937,1582.1,1581.5,3.1618]
[1744850665414,6.9851,1582.1,1581.6,2.4359]
[1744850665620,6.9851,1582.1,1581.7,1.6929]
[1744850665925,8.25883256,1582.1,1581.8,2.07061]
[1744850666125,6.99458256,1582.1,1581.9,1.6929]
[1744850666318,8.25885256,1582.1,1581.9,1.6929]
[1744850666519,8.25885256,1582.1,1581.9,2.95729]
[1744850667018,8.25883256,1582.1,1581.9,2.95729]
[1744850667418,6.99458256,1582.1,1581.9,2.95729]
[1744850668017,6.99458256,1582.1,1582.0,1.26432]
[1744850668218,11.99458256,1582.1,1582.0,2.95722]
[1744850668425,6.99458256,1582.1,1582.0,2.95722]
[1744850669520,6.99458256,1582.1,1582.0,1.6929]
[1744850669724,8.25882256,1582.1,1582.0,1.6929]
[1744850669920,6.99458256,1582.1,1582.0,2.95722]
[1744850670325,0.00948256,1582.1,1582.0,2.95722]
[1744850671030,1.65068256,1582.1,1582.0,2.95722]
[1744850672927,1.65068256,1582.1,1581.9,1.26438]
[1744850673228,2.91498256,1582.1,1581.9,1.26438]
[1744850673718,2.91498256,1582.1,1582.0,1.26432]
[1744850674121,1.65068256,1582.1,1582.0,1.26432]
[1744850676926,3.2078,1582.6,1582.5,1.26392]
[1744850677223,1.6549,1582.6,1582.5,1.26392]
[1744850677627,2.91874,1582.6,1582.4,1.26394]
[1744850677831,1.6549,1582.6,1582.5,1.26392]
[1744850678028,1.66438256,1582.6,1582.5,1.26392]
[1744850679131,0.00948256,1582.6,1582.5,1.26392]
[1744850679528,0.00948256,1582.6,1582.5,2.94662]
[1744850683634,0.00948256,1582.6,1582.5,3.80502]
[1744850683831,0.00948256,1582.6,1582.3,43.96018]
[1744850683832,1.26399,1582.5,1582.3,1.26404]
[1744850684136,1.6277,1582.4,1582.3,1.26404]
[1744850684936,2.8917,1582.4,1582.3,1.26404]
[1744850685433,1.26412,1582.3,1582.1,1.26419]
[1744850685630,1.26416,1582.2,1582.0,3.01807]
[1744850685830,1.26416,1582.2,1582.0,1.26427]
[1744850685831,1.6277,1582.1,1582.0,1.26427]
[1744850686627,1.6277,1582.1,1582.0,3.01807]
[1744850687031,1.26443,1581.9,1581.7,0.00948256]
[1744850687335,2.88178,1581.8,1581.7,0.00948256]
[1744850687736,1.6173,1581.8,1581.7,1.27404256]
[1744850687930,8.4054,1582.2,1581.7,0.00948256]
[1744850688237,1.6173,1582.1,1582.0,1.26432]
[1744850689432,7.5638,1582.4,1582.3,1.26408]
[1744850689733,4.36548256,1582.6,1582.5,1.26392]
[1744850689938,5.97878256,1582.6,1582.5,1.26392]
[1744850691834,4.36548256,1582.6,1582.5,1.26392]
[1744850692336,5.97878256,1582.6,1582.5,1.26392]
[1744850693742,1.62278256,1582.6,1582.5,1.26392]
[1744850695134,1.62278256,1582.6,1582.4,1.26395]
[1744850695341,2.88667256,1582.6,1582.5,1.26392]
[1744850695640,2.88665256,1582.6,1582.4,1.26396]
[1744850696037,1.62278256,1582.6,1582.5,1.26392]
[1744850696238,2.88662256,1582.6,1582.5,1.26392]
[1744850696635,1.62278256,1582.6,1582.5,1.26392]
[1744850700134,1.26416,1582.2,1582.1,5.856]
[1744850700337,1.26429,1582.1,1581.9,3.02936]
[1744850700554,3.02489,1582.1,1581.9,3.02936]
[1744850701245,7.57328256,1582.6,1582.1,3.16052]
[1744850701441,1.7606,1582.5,1582.4,1.264]
[1744850703334,1.26412,1582.3,1582.1,7.1202]
[1744850703538,1.26432,1582.0,1581.8,1.26441]
[1744850703736,1.7248,1581.9,1581.7,0.00948256]
[1744850703952,4.356,1582.2,1582.1,1.26424]
[1744850705247,5.9857,1582.2,1582.1,1.26424]
[1744850705548,9.1935,1582.2,1582.0,1.2643]
[1744850705850,5.99,1582.3,1582.2,1.26416]
[1744850706040,5.99,1582.3,1581.9,3.96158]
[1744850706041,2.89378,1582.3,1582.1,1.2642]
[1744850706243,1.6297,1582.3,1582.0,1.6448]
[1744850706539,1.6297,1582.3,1582.1,1.26422]
[1744850706743,2.8938,1582.3,1582.2,1.26416]
[1744850707043,1.6297,1582.3,1582.0,1.6448]
[1744850707250,2.89378,1582.3,1582.2,1.26416]
[1744850707552,1.6297,1582.3,1582.2,1.26416]
[1744850709451,1.6297,1582.3,1582.0,1.6448]
[1744850709655,4.47198,1582.2,1582.1,1.26424]
[1744850710151,1.26424,1582.1,1581.9,0.8006]
[1744850710450,5.9972,1582.1,1581.8,2.93631]
[1744850710649,1.26448,1581.8,1581.7,1.27397256]
[1744850710846,3.2078,1582.0,1581.7,1.27397256]
[1744850710847,1.26443,1581.9,1581.7,1.27397256]
[1744850711052,2.90463,1581.9,1581.7,1.27397256]
[1744850711655,1.26448,1581.8,1581.7,1.27404256]
[1744850711855,10.46928,1581.8,1581.7,0.00948256]
[1744850712155,7.26148,1581.8,1581.7,1.27404256]
[1744850712351,9.2048,1581.8,1581.7,0.00948256]
[1744850712553,3.2078,1581.8,1581.7,1.27404256]
[1744850712753,3.2078,1581.8,1581.7,2.93744256]
[1744850713057,5.997,1582.0,1581.9,1.2644]
[1744850713257,3.2078,1582.1,1582.0,1.26432]
[1744850713757,4.8478,1582.1,1582.0,1.26432]
[1744850714857,4.357,1582.4,1582.1,1.26424]
[1744850715053,4.357,1582.4,1582.3,1.26408]
[1744850715257,8.44978256,1582.6,1582.5,1.26392]
[1744850715649,10.05928256,1582.6,1582.5,1.26392]
[1744850718363,15.05928256,1582.6,1582.1,0.8601]
[1744850718561,15.05928256,1582.6,1582.2,1.26416]
[1744850718562,3.2078,1582.3,1582.2,1.26416]
[1744850718763,4.426,1582.3,1582.2,1.2641]
[1744850718953,4.426,1582.3,1582.2,2.8697]
[1744850721063,4.426,1582.3,1582.2,1.6056]
[1744850721263,6.0985,1582.3,1582.2,2.86976]
[1744850723560,4.426,1582.3,1582.2,2.86976]
[1744850724467,7.6338,1582.5,1582.2,1.6056]
[1744850724762,9.2375,1582.5,1582.4,1.264]
[1744850726363,3.2078,1582.5,1582.4,1.264]
[1744850726664,3.2078,1582.5,1582.4,2.0872]
[1744850726962,3.2078,1582.5,1582.4,3.8381]
[1744850730158,0.00948256,1582.6,1582.5,1.26392]
[1744850730353,0.00948256,1582.6,1582.5,2.93792]
[1744850730566,0.00948256,1582.6,1582.5,3.77732]
[1744850732260,1.27336256,1582.6,1582.4,0.8232]
[1744850732465,1.69748256,1582.6,1582.5,1.26392]
[1744850732653,2.96132256,1582.6,1582.5,1.26392]
[1744850732857,2.96132256,1582.6,1582.3,6.6954]
[1744850732858,1.26392,1582.5,1582.3,7.95943]
[1744850733059,1.6569,1582.4,1582.3,7.95943]
[1744850734067,0.00948256,1582.6,1582.5,1.26392]
[1744850734460,1.66638256,1582.6,1582.5,1.26392]
[1744850734760,2.93022256,1582.6,1582.5,1.26392]
[1744850735062,2.93022256,1582.6,1582.4,2.96044]
[1744850735264,1.6569,1582.5,1582.4,2.96044]
[1744850743369,4.9638,1583.1,1582.8,1.26368]
[1744850743671,4.9638,1583.1,1583.0,1.26352]
[1744850743971,1.756,1583.1,1583.0,1.26352]
[1744850744267,0.8569,1583.2,1583.1,1.26344]
[1744850744470,2.62238256,1583.2,1583.1,1.26344]
[1744850745867,0.00948256,1583.2,1583.1,1.26344]
[1744850746064,0.00948256,1583.2,1583.1,3.02204]
[1744850746265,0.00948256,1583.2,1583.1,1.26344]
[1744850746565,0.00948256,1583.2,1583.1,3.02204]
[1744850747172,1.27284256,1583.2,1583.0,7.11948]
[1744850747369,1.26352,1583.0,1582.9,0.00948256]
[1744850747574,4.47132,1583.0,1582.9,0.00948256]
[1744850747970,2.96062,1583.0,1582.9,0.00948256]
[1744850748169,6.16842,1583.0,1582.9,0.00948256]
[1744850748872,11.16842,1583.0,1582.9,0.00948256]
[1744850751475,4.9049,1583.0,1582.9,0.00948256]
[1744850751679,1.6971,1583.0,1582.9,1.27308256]
[1744850752179,1.6971,1583.0,1582.9,0.00948256]
[1744850752180,2.96062,1583.0,1582.9,0.00948256]
[1744850752366,6.16842,1583.0,1582.9,0.00948256]
[1744850756377,11.16842,1583.0,1582.9,2.56e-06]
[1744850756580,17.15842,1583.0,1582.9,2.56e-06]
[1744850756975,12.15842,1583.0,1582.9,2.56e-06]
[1744850761889,6.16842,1583.0,1582.9,2.56e-06]
[1744850762087,6.16842,1583.0,1582.9,1.76660256]
[1744850762987,6.16842,1583.0,1582.9,2.56e-06]
[1744850764385,4.47132,1583.0,1582.9,1.26360256]
[1744850764586,4.47132,1583.0,1582.9,1.68790256]
[1744850764888,4.47132,1583.0,1582.9,2.95150256]
[1744850765187,3.2078,1583.0,1582.9,4.59210256]
[1744850765482,4.47132,1583.0,1582.9,3.32850256]
[1744850765788,6.13882,1583.0,1582.9,2.56e-06]
[1744850766779,3.2078,1583.0,1582.9,3.00910256]
[1744850766988,4.377,1583.1,1583.0,1.26352]
[1744850767290,4.377,1583.1,1583.0,3.85412]
[1744850767585,0.00948256,1583.2,1583.1,1.26344]
[1744850767785,0.00948256,1583.2,1583.1,3.00894]
[1744850767974,0.00948256,1583.2,1583.1,8.00894]
[1744850768374,3.96427,1583.6,1583.1,8.00894]
[1744850768375,1.26306,1583.6,1583.1,8.00894]
[1744850768579,1.26314,1583.5,1583.3,1.26323]
[1744850768777,1.26314,1583.5,1583.4,2.5906]
[1744850768778,4.47092,1583.5,1583.4,2.5906]
[1744850769887,1.26321,1583.4,1583.2,1.2633]
[1744850770088,3.02981,1583.4,1583.3,1.6391]
[1744850770285,1.7666,1583.4,1583.2,0.8343]
[1744850770482,6.23768,1583.3,1583.2,2.4734]
[1744850770785,1.26336,1583.2,1583.1,5.856]
[1744850770982,1.26344,1583.1,1583.0,2.4945]
[1744850771381,1.26352,1583.0,1582.9,2.56e-06]
[1744850771682,3.03012,1583.0,1582.9,2.56e-06]
[1744850771890,3.86632,1583.0,1582.9,2.56e-06]
[1744850772185,14.97247077,1583.0,1582.9,2.56e-06]
[1744850772783,14.97246804,1583.0,1582.9,2.56e-06]
[1744850772981,14.9724689,1583.0,1582.9,2.56e-06]
[1744850773382,19.23232,1583.0,1582.9,2.56e-06]
[1744850773786,19.34846874,1583.0,1582.9,2.56e-06]
[1744850773980,19.23232,1583.0,1582.9,2.56e-06]
[1744850774385,14.23232,1583.0,1582.9,2.56e-06]
[1744850774589,8.24232,1583.0,1582.9,2.56e-06]
[1744850775689,6.9788,1583.0,1582.9,1.26360256]
[1744850775990,87.582,1583.2,1582.9,0.80900256]
[1744850776187,3.2078,1583.3,1583.0,1.6757]
[1744850776385,3.2078,1583.3,1583.2,1.26336]
[1744850776580,3.21728256,1583.6,1583.5,1.26312]
[1744850776891,0.00948256,1583.6,1583.5,1.26312]
[1744850777090,1.27254256,1583.6,1583.4,1.26317]
[1744850777286,1.27254256,1583.6,1583.5,1.6757]
[1744850777482,0.00948256,1583.6,1583.5,1.6757]
[1744850777684,0.00948256,1583.6,1583.5,2.93882]
[1744850777990,0.00948256,1583.6,1583.5,1.6757]
[1744850778183,1.27252256,1583.6,1583.5,1.6757]
[1744850778498,0.00948256,1583.6,1583.5,2.93882]
[1744850778790,0.00948256,1583.6,1583.5,1.6757]
[1744850778978,1.27252256,1583.6,1583.5,1.6757]
[1744850779184,0.00948256,1583.6,1583.5,2.93882]
[1744850780191,0.00948256,1583.6,1583.5,7.93882]
[1744850780383,1.27252256,1583.6,1583.5,1.6757]
[1744850780584,4.48032256,1583.6,1583.5,1.6757]
[1744850780786,1.26312,1583.5,1583.4,0.802]
[1744850780985,2.94232,1583.5,1583.3,3.67024]
[1744850781385,1.6792,1583.5,1583.4,1.2632]
[1744850781797,1.6792,1583.5,1583.4,2.9824]
[1744850782995,0.00948256,1583.6,1583.5,1.26312]
[1744850783204,0.00948256,1583.6,1583.5,2.98232]
[1744850783710,0.00948256,1583.6,1583.5,7.98232]
[1744850784411,4.44,1583.9,1583.8,1.26288]
[1744850785110,6.1508,1584.1,1583.7,1.6412]
[1744850785407,5.71212256,1584.1,1583.9,1.26274]
[1744850785710,5.71212256,1584.1,1584.0,2.5067]
[1744850786106,7.42292256,1584.1,1584.0,2.5067]
[1744850786404,7.42292256,1584.1,1584.0,0.8655]
[1744850786604,1.2628,1583.9,1583.8,3.3235]
[1744850786799,1.26288,1583.8,1583.7,0.00948256]
[1744850787111,5.70288,1583.8,1583.7,0.00948256]
[1744850787309,5.70288,1583.8,1583.7,2.10804256]
[1744850787608,4.44,1583.8,1583.7,3.77854256]
[1744850788001,5.70288,1583.8,1583.7,2.51558256]
[1744850788203,7.39638,1583.8,1583.7,2.51558256]
[1744850788505,4.44,1583.8,1583.7,3.77854256]
[1744850788712,5.70288,1583.8,1583.7,2.51558256]
[1744850788897,7.39638,1583.8,1583.7,2.51558256]
[1744850789309,7.39638,1583.8,1583.7,0.00948256]
[1744850792105,7.39638,1583.8,1583.7,1.27244256]
[1744850792305,7.39638,1583.8,1583.7,3.03514256]
[1744850792605,6.1335,1583.8,1583.7,3.03514256]
[1744850793003,4.44,1583.8,1583.7,3.03514256]
[1744850793605,2.98779,1584.0,1583.8,1.26282]
[1744850793810,2.98779,1584.0,1583.9,2.8767]
[1744850793811,7.42679,1584.0,1583.9,2.8767]
[1744850794107,5.70179,1584.0,1583.9,2.8767]
[1744850794310,4.439,1584.0,1583.9,2.8767]
[1744850794511,5.70172,1584.0,1583.9,2.8767]
[1744850794814,5.70172,1584.0,1583.9,1.6139]
[1744850795013,7.38512,1584.0,1583.9,1.6139]
[1744850795817,1.2628,1583.9,1583.8,1.6754]
[1744850796019,1.26288,1583.8,1583.7,0.00948256]
[1744850796319,2.11548,1583.8,1583.7,0.00948256]
[1744850796512,3.83768,1583.8,1583.7,0.00948256]
[1744850800921,7.04548,1583.8,1583.7,0.00948256]
[1744850802216,3.83768,1583.8,1583.7,0.00948256]
[1744850802416,7.04548,1583.8,1583.7,0.00948256]
[1744850804118,1.26287,1583.9,1583.8,1.26288]
[1744850804316,5.7018,1583.9,1583.8,3.79348]
[1744850804517,5.7018,1583.9,1583.8,4.62228]
[1744850805425,3.2078,1584.0,1583.9,1.2628]
[1744850805617,5.71114256,1584.1,1584.0,1.26272]
[1744850805922,1.26272,1584.0,1583.9,1.6768]
[1744850806127,4.47052,1584.0,1583.9,1.6768]
[1744850806421,6.19182,1584.0,1583.9,1.6768]
[1744850807025,1.2628,1583.9,1583.8,1.7025]
[1744850807221,2.9841,1583.9,1583.8,1.7025]
[1744850807419,1.26288,1583.8,1583.7,1.68628256]
[1744850807628,10.61698,1583.8,1583.7,0.00948256]
[1744850807830,8.89568,1583.8,1583.7,1.27244256]
[1744850808028,7.6328,1583.8,1583.7,2.94924256]
[1744850808826,3.2078,1583.8,1583.7,2.94924256]
[1744850809928,3.2078,1583.8,1583.7,7.94924256]
[1744850810629,7.45628,1584.0,1583.8,1.26282]
[1744850810832,4.425,1584.0,1583.9,3.0167]
[1744850811124,0.00948256,1584.1,1584.0,1.26272]
[1744850811332,0.00948256,1584.1,1584.0,3.01662]
[1744850814725,0.00948256,1584.1,1584.0,8.01662]
[1744850815635,3.2078,1584.4,1584.1,3.15652]
[1744850815929,3.2078,1584.4,1584.3,1.26248]
[1744850816326,3.2078,1584.4,1584.3,3.00868]
[1744850816529,3.2078,1584.4,1584.3,3.89118]
[1744850817128,0.00621622,1584.5,1584.4,1.2624]
[1744850817335,0.00621622,1584.5,1584.4,3.0086]
[1744850817933,0.00621622,1584.5,1584.4,13.8646]
[1744850819135,0.00621622,1584.5,1584.4,54.6646]
[1744850819339,0.00621622,1584.5,1584.4,49.6646]
[1744850820138,1.26853622,1584.5,1584.4,48.4022]
[1744850820342,9.47633622,1584.5,1584.4,5.856]
[1744850820533,10.27473622,1584.5,1584.4,5.856]
[1744850820727,1.26248,1584.3,1584.2,0.8232]
[1744850821840,4.47028,1584.3,1584.2,2.5841]
[1744850822238,1.26261,1584.2,1584.0,42.06268]
[1744850822429,7.6318,1584.3,1584.0,42.5609]
[1744850822629,1.26244,1584.4,1584.1,1.7609]
[1744850822835,1.2625,1584.3,1584.1,1.7609]
[1744850823239,1.7135,1584.4,1584.1,1.7609]
[1744850823445,2.97595,1584.4,1584.1,1.7609]
[1744850823643,2.97595,1584.4,1584.2,2.08253]
[1744850823842,2.97595,1584.4,1584.3,1.26248]
[1744850824041,1.7135,1584.4,1584.3,2.91568]
[1744850824945,9.69880622,1584.5,1584.4,1.2624]
[1744850825145,9.69880622,1584.5,1584.4,2.9156]
[1744850825643,8.90033622,1584.5,1584.4,2.9156]
[1744850825845,5.69253622,1584.5,1584.4,2.9156]
[1744850826741,0.00621622,1584.5,1584.4,2.9156]
[1744850827341,0.00621622,1584.5,1584.4,7.9156]
[1744850828646,0.00621622,1584.5,1584.4,2.9156]
[1744850829235,1.26248,1584.3,1584.2,0.82]
[1744850829440,6.36402,1584.3,1583.9,6.6662]
[1744850829748,6.1826,1584.2,1584.1,1.26264]
[1744850830335,7.44516,1584.2,1584.1,1.26264]
[1744850831249,6.1826,1584.2,1584.1,1.26264]
[1744850831848,6.1826,1584.2,1584.1,2.06684]
[1744850832039,3.2078,1584.3,1584.1,0.8042]
[1744850832244,1.6061,1584.4,1584.3,1.26248]
[1744850832442,2.8685,1584.4,1584.3,1.26248]
[1744850832646,1.6061,1584.4,1584.3,1.26248]
[1744850832848,0.00621622,1584.5,1584.4,1.2624]
[1744850833047,1.69731622,1584.5,1584.4,1.2624]
[1744850833351,1.69731622,1584.5,1584.4,2.095]
[1744850833552,0.00621622,1584.5,1584.4,2.095]
[1744850833743,0.00621622,1584.5,1584.4,3.732]
[1744850834947,1.26853622,1584.5,1584.4,2.4696]
[1744850835146,6.16743622,1584.5,1584.3,1.26244]
[1744850835345,6.16743622,1584.5,1584.4,1.2624]
[1744850835346,4.90511622,1584.5,1584.4,1.2624]
[1744850835962,6.16748622,1584.5,1584.3,2.89944]
[1744850836148,1.7617,1584.4,1584.3,2.89944]
[1744850836450,1.7617,1584.4,1584.3,1.637]
[1744850836659,11.1937,1584.4,1583.8,40.8]